bitfinex-derivatives/quotes_BTCF0:USTF0_20251219
["timestamp","ask_amount","ask_price","bid_price","bid_amount"]
[1766118108675,0.19722959,87262.0,87247.0,0.03908]
[1766118108972,0.19722959,87262.0,87247.0,0.04484]
[1766118109371,0.00576,87264.0,87230.0,0.0114713]
[1766118109372,0.19722959,87257.0,87230.0,0.0114713]
[1766118109561,0.19722959,87240.0,87225.0,0.0114719]
[1766118109763,0.19722959,87240.0,87226.0,0.00412]
[1766118110378,0.19722959,87236.0,87218.0,0.01376592]
[1766118110678,0.19722959,87230.0,87218.0,0.00229312]
[1766118111266,0.20298959,87230.0,87218.0,0.00229312]
[1766118112173,0.00576,87230.0,87218.0,0.00229312]
[1766118112371,0.20298959,87230.0,87218.0,0.00229312]
[1766118114578,0.20298959,87230.0,87204.0,0.00576]
[1766118114769,0.19722959,87220.0,87204.0,0.00576]
[1766118114969,0.00576,87219.0,87204.0,0.00576]
[1766118116189,0.19722959,87214.0,87164.0,0.3251]
[1766118116369,0.19722959,87214.0,87159.0,0.0114806]
[1766118116370,0.19722959,87197.0,87183.0,0.0114774]
[1766118116667,0.00593197,87201.0,87184.0,0.00576]
[1766118116872,0.19722959,87200.0,87184.0,0.00576]
[1766118117772,0.19722959,87197.0,87182.0,0.03347]
[1766118117976,0.00576,87196.0,87182.0,0.03347]
[1766118118481,0.00011603,87195.0,87182.0,0.03347]
[1766118118682,0.00011603,87195.0,87186.0,0.011477]
[1766118118869,0.00011603,87195.0,87188.0,0.0114769]
[1766118119272,0.00011603,87195.0,87184.0,0.0114773]
[1766118119872,0.00011603,87195.0,87188.0,0.0114769]
[1766118120167,0.00011603,87195.0,87182.0,0.03347]
[1766118120168,0.00011603,87195.0,87184.0,0.0114773]
[1766118120774,0.00011603,87195.0,87187.0,0.01158635]
[1766118121270,7e-08,87201.0,87188.0,0.00576]
[1766118121484,0.19722959,87200.0,87188.0,0.00576]
[1766118121781,0.19722959,87200.0,87187.0,0.00010935]
[1766118121782,0.19722959,87200.0,87187.0,0.01158625]
[1766118121986,0.19722959,87200.0,87187.0,0.00010935]
[1766118122179,0.19722959,87200.0,87187.0,0.00586935]
[1766118122379,0.19722959,87197.0,87187.0,0.00010935]
[1766118122680,0.00576007,87201.0,87187.0,0.00010935]
[1766118122681,0.00576,87199.0,87187.0,0.00010935]
[1766118122985,0.19722959,87197.0,87187.0,0.00010935]
[1766118124071,0.19722959,87197.0,87173.0,0.00508]
[1766118124276,0.19722959,87183.0,87168.0,0.0114795]
[1766118124472,0.19722959,87180.0,87168.0,0.0114795]
[1766118124872,0.19722959,87180.0,87170.0,0.0114791]
[1766118125078,8.597e-05,87179.0,87170.0,0.0114791]
[1766118126384,8.597e-05,87179.0,87166.0,0.00576]
[1766118126572,0.19722959,87180.0,87166.0,0.00576]
[1766118126573,0.00117592,87181.0,87178.0,0.0114782]
[1766118126774,9e-08,87184.0,87180.0,0.0114779]
[1766118127088,9e-08,87185.0,87180.0,0.0114779]
[1766118127287,9e-08,87185.0,87176.0,0.0114783]
[1766118127484,0.20298959,87190.0,87180.0,0.0114778]
[1766118127785,0.09168803,87200.0,87188.0,0.0114767]
[1766118127786,0.00576,87196.0,87188.0,0.0114767]
[1766118127974,0.00576,87195.0,87188.0,0.0114767]
[1766118128586,0.00576,87195.0,87183.0,0.00017207]
[1766118128795,0.00576,87197.0,87190.0,0.0114765]
[1766118129090,0.19722959,87200.0,87190.0,0.0114765]
[1766118129388,0.00576,87199.0,87193.0,0.0114762]
[1766118129594,0.00576,87198.0,87183.0,0.00017207]
[1766118129883,0.00576,87197.0,87183.0,0.00017207]
[1766118130591,0.00576,87197.0,87189.0,0.0114767]
[1766118130796,0.00576,87197.0,87188.0,0.0114768]
[1766118131681,0.00576,87197.0,87183.0,0.00017207]
[1766118131881,0.19722959,87193.0,87183.0,0.00593207]
[1766118132290,0.19722959,87193.0,87183.0,0.00017207]
[1766118132486,0.00576,87192.0,87183.0,0.00017207]
[1766118132677,0.00576,87192.0,87171.0,0.011479]
[1766118132882,0.00576,87192.0,87172.0,0.0018]
[1766118133084,0.00576,87192.0,87176.0,0.0114784]
[1766118133284,0.19722959,87190.0,87172.0,0.0018]
[1766118133491,0.19722959,87190.0,87172.0,0.0132789]
[1766118133791,0.19722959,87190.0,87172.0,0.0018]
[1766118134088,0.19722959,87182.0,87167.0,0.0114796]
[1766118134284,0.19722959,87182.0,87166.0,0.03565]
[1766118134483,0.19722959,87176.0,87166.0,0.03565]
[1766118137086,0.19722959,87176.0,87130.0,0.19722959]
[1766118137087,0.0114788,87174.0,87130.0,0.19722959]
[1766118137298,0.19722959,87160.0,87146.0,0.0114823]
[1766118137485,0.0016,87164.0,87147.0,0.00032]
[1766118138192,0.0016,87164.0,87143.0,0.0114827]
[1766118138397,0.19776509,87160.0,87144.0,0.00444]
[1766118138585,0.00576,87160.0,87145.0,0.00576]
[1766118139193,0.00576,87164.0,87154.0,0.0114813]
[1766118139392,0.00017207,87165.0,87145.0,0.00576]
[1766118139393,0.00017207,87165.0,87159.0,0.0114806]
[1766118139587,7e-08,87165.0,87153.0,0.00576]
[1766118140595,7e-08,87165.0,87159.0,0.0114806]
[1766118140798,7e-08,87165.0,87156.0,0.011481]
[1766118141593,0.01148007,87165.0,87150.0,0.00017207]
[1766118141796,0.19776509,87160.0,87150.0,0.00017207]
[1766118142094,0.00576,87160.0,87150.0,0.00017207]
[1766118146092,0.20352509,87160.0,87150.0,0.00017207]
[1766118146293,0.20352509,87160.0,87147.0,0.04205]
[1766118146689,0.0114811,87156.0,87147.0,0.04205]
[1766118146998,0.0114807,87159.0,87147.0,0.04205]
[1766118147390,0.21500569,87160.0,87147.0,0.04205]
[1766118147999,0.20352509,87160.0,87147.0,0.04205]
[1766118148295,7e-08,87165.0,87147.0,0.0535322]
[1766118148501,7e-08,87165.0,87147.0,0.04205]
[1766118149400,7e-08,87165.0,87157.0,0.0114809]
[1766118149600,0.09155615,87177.0,87147.0,0.04205]
[1766118149601,0.00576,87172.0,87152.0,0.00576]
[1766118149792,0.00576,87172.0,87162.0,0.0114802]
[1766118149990,0.00576,87172.0,87159.0,0.0114806]
[1766118150390,0.00576,87172.0,87161.0,0.0114803]
[1766118150598,0.00576,87172.0,87159.0,0.00576]
[1766118150800,0.00017207,87175.0,87159.0,0.00576]
[1766118151100,0.00593207,87175.0,87159.0,0.00576]
[1766118151889,7e-08,87175.0,87159.0,0.00576]
[1766118152098,7e-08,87175.0,87168.0,0.0114794]
[1766118152294,7e-08,87175.0,87169.0,0.00576]
[1766118153099,7e-08,87175.0,87173.0,0.0114787]
[1766118153704,0.06179373,87201.0,87169.0,0.00576]
[1766118153899,0.06179373,87201.0,87170.0,0.19776509]
[1766118154199,0.19776509,87200.0,87160.0,0.19776509]
[1766118154499,0.19776509,87200.0,87121.0,0.0114856]
[1766118154500,0.19776509,87190.0,87161.0,2.41736]
[1766118154702,0.00017207,87184.0,87169.0,0.0114793]
[1766118154901,0.00017207,87184.0,87170.0,0.00576]
[1766118155699,0.00017207,87184.0,87173.0,0.0114787]
[1766118156000,0.00017207,87184.0,87167.0,0.00017207]
[1766118156600,0.00017207,87184.0,87168.0,0.00576]
[1766118157002,0.00017207,87184.0,87167.0,0.00017207]
[1766118157003,0.00017207,87184.0,87169.0,0.00576]
[1766118157200,0.01164947,87184.0,87169.0,0.00576]
[1766118157590,0.00017207,87184.0,87169.0,0.00288]
[1766118157798,0.01164947,87184.0,87167.0,0.00017207]
[1766118158004,0.00017207,87184.0,87167.0,0.00017207]
[1766118159703,7e-08,87184.0,87167.0,0.00017207]
[1766118159890,0.06203632,87209.0,87188.0,0.0114768]
[1766118159891,0.06179373,87197.0,87188.0,0.0114768]
[1766118160087,0.06179373,87199.0,87188.0,0.0114768]
[1766118160409,0.10260398,87218.0,87184.0,0.00576]
[1766118160410,3e-08,87202.0,87184.0,0.00576]
[1766118160699,0.08247434,87218.0,87204.0,0.0114748]
[1766118160898,0.00576,87218.0,87202.0,0.00017207]
[1766118161210,0.00576,87218.0,87201.0,0.00017207]
[1766118161400,0.017233,87218.0,87201.0,0.00017207]
[1766118161792,0.0114734,87215.0,87201.0,0.00017207]
[1766118162105,0.0114739,87211.0,87178.0,0.0114781]
[1766118162304,0.00576,87210.0,87179.0,0.00368]
[1766118162492,0.00576,87210.0,87180.0,0.0114778]
[1766118162995,0.00017207,87204.0,87186.0,0.00017207]
[1766118165690,0.00017207,87204.0,87186.0,0.01164917]
[1766118166204,0.00017207,87204.0,87187.0,0.00476]
[1766118166395,0.00017207,87204.0,87187.0,0.00408]
[1766118167090,0.00017207,87204.0,87186.0,0.00393207]
[1766118169100,0.00017207,87204.0,87186.0,0.00017207]
[1766118169303,0.0114749,87203.0,87186.0,0.00017207]
[1766118170699,0.00017207,87204.0,87186.0,0.00017207]
[1766118171000,0.0114753,87201.0,87186.0,0.00017207]
[1766118171203,0.00576,87200.0,87186.0,0.00017207]
[1766118172005,0.0114755,87199.0,87186.0,0.00017207]
[1766118172205,0.0114758,87197.0,87186.0,0.00017207]
[1766118172410,0.29562684,87200.0,87153.0,0.0557]
[1766118172710,0.011477,87188.0,87154.0,0.00576]
[1766118172904,0.00576,87187.0,87154.0,0.00576]
[1766118173112,0.0114774,87185.0,87155.0,0.0114812]
[1766118173315,0.0114775,87184.0,87156.0,0.00552]
[1766118173608,0.00017207,87179.0,87156.0,0.00552]
[1766118173911,0.00372,87178.0,87157.0,0.00576]
[1766118174204,0.00372,87178.0,87147.0,0.04205]
[1766118174409,0.00372,87178.0,87148.0,0.00184]
[1766118175194,0.00372,87178.0,87151.0,0.0114816]
[1766118175408,0.00372,87178.0,87153.0,0.0114814]
[1766118176604,0.0114783,87177.0,87148.0,0.013322]
[1766118177504,0.00372,87178.0,87152.0,0.0114815]
[1766118177704,0.00372,87178.0,87151.0,0.0114817]
[1766118178306,0.0114783,87177.0,87151.0,0.0114817]
[1766118178710,0.00372,87178.0,87151.0,0.0114817]
[1766118179008,0.00372,87178.0,87152.0,0.00576]
[1766118179215,0.0114783,87177.0,87152.0,0.00576]
[1766118179411,0.00372,87178.0,87152.0,0.00576]
[1766118179816,0.00372,87178.0,87153.0,0.0114814]
[1766118180113,0.00372,87178.0,87152.0,0.0172416]
[1766118180417,0.06183496,87170.0,87152.0,0.0172416]
[1766118180710,0.06183496,87170.0,87147.0,0.04205]
[1766118181013,0.0114799,87165.0,87147.0,0.04205]
[1766118181312,0.00576,87164.0,87147.0,0.04205]
[1766118181912,0.06183496,87163.0,87147.0,0.04205]
[1766118182309,0.14349979,87191.0,87147.0,0.04205]
[1766118182310,0.06183496,87167.0,87149.0,0.0114819]
[1766118182516,0.06183496,87168.0,87151.0,0.0114816]
[1766118183411,0.06759496,87169.0,87151.0,0.0114816]
[1766118183813,0.06759496,87169.0,87147.0,0.0535321]
[1766118184014,0.06759496,87169.0,87147.0,0.04205]
[1766118184219,0.06183496,87168.0,87147.0,0.04205]
[1766118184420,0.00576,87169.0,87148.0,0.0114821]
[1766118184421,0.06759496,87169.0,87148.0,0.0114821]
[1766118185418,0.00576,87169.0,87152.0,0.0114815]
[1766118185619,0.00576,87169.0,87153.0,0.00552]
[1766118185819,0.00576,87169.0,87154.0,0.00576]
[1766118187219,0.00576,87169.0,87154.0,0.0172412]
[1766118187814,0.00576,87169.0,87154.0,0.00576]
[1766118188323,0.00576,87169.0,87155.0,0.05255]
[1766118189521,0.00576,87169.0,87156.0,0.00576]
[1766118190507,0.00576,87169.0,87155.0,0.05255]
[1766118191526,0.0114798,87166.0,87155.0,0.05255]
[1766118191825,0.07907446,87169.0,87155.0,0.05255]
[1766118192030,0.06183496,87169.0,87155.0,0.05255]
[1766118192222,0.06183496,87171.0,87155.0,0.05255]
[1766118192518,0.0114806,87160.0,87138.0,0.00229522]
[1766118192721,0.00017207,87158.0,87139.0,0.00576]
[1766118193514,0.00017207,87158.0,87138.0,0.00229522]
[1766118193714,0.00017207,87158.0,87139.0,0.00576]
[1766118194616,0.00017207,87158.0,87138.0,0.00229522]
[1766118194920,0.00017207,87158.0,87139.0,0.00164]
[1766118195715,0.00017207,87158.0,87140.0,0.0114831]
[1766118195915,0.00017207,87158.0,87139.0,0.0131232]
[1766118196318,0.00017207,87158.0,87140.0,0.03969]
[1766118196820,0.00017207,87158.0,87145.0,0.0114825]
[1766118197010,0.00017207,87158.0,87140.0,0.03969]
[1766118197726,0.00017207,87158.0,87148.0,0.011482]
[1766118197925,0.00017207,87158.0,87149.0,0.00576]
[1766118198128,7e-08,87158.0,87150.0,0.0114819]
[1766118198628,7e-08,87158.0,87149.0,0.00576]
[1766118199420,7e-08,87158.0,87145.0,0.00017207]
[1766118201215,0.06183503,87158.0,87145.0,0.00017207]
[1766118201723,7e-08,87158.0,87145.0,0.00017207]
[1766118202430,7e-08,87158.0,87145.0,0.00593207]
[1766118203434,0.06183503,87158.0,87145.0,0.00593207]
[1766118206432,7e-08,87158.0,87149.0,0.011482]
[1766118206627,7e-08,87158.0,87153.0,0.0114813]
[1766118206834,7e-08,87158.0,87153.0,0.0172413]
[1766118207618,7e-08,87158.0,87153.0,0.00576]
[1766118208234,0.06183503,87158.0,87153.0,0.00576]
[1766118209134,0.06183496,87157.0,87153.0,0.00576]
[1766118210740,1.3e-07,87158.0,87154.0,0.0114813]
[1766118210942,7e-08,87158.0,87153.0,0.00576]
[1766118213136,7e-08,87158.0,87146.0,0.0114823]
[1766118213329,7e-08,87158.0,87148.0,0.0114821]
[1766118214736,7e-08,87158.0,87154.0,0.0114813]
[1766118215042,7e-08,87158.0,87156.0,0.0114811]
[1766118215537,0.08247434,87174.0,87155.0,0.00576]
[1766118215733,0.10260398,87183.0,87160.0,0.19768157]
[1766118215734,2e-08,87183.0,87160.0,0.19768157]
[1766118215933,9e-08,87192.0,87170.0,0.19768157]
[1766118216143,0.01088645,87203.0,87172.0,0.0114789]
[1766118216333,0.00348,87202.0,87183.0,0.0114775]
[1766118216533,0.00017207,87201.0,87184.0,0.00273207]
[1766118217240,0.00017207,87201.0,87187.0,0.0114769]
[1766118217430,0.00017207,87201.0,87184.0,0.00273207]
[1766118217740,0.19768157,87200.0,87184.0,0.00017207]
[1766118217937,0.0172354,87199.0,87184.0,0.00017207]
[1766118219031,0.0114762,87193.0,87184.0,0.00017207]
[1766118219235,0.00576,87192.0,87184.0,0.00017207]
[1766118224647,0.00017207,87201.0,87184.0,0.00217207]
[1766118226543,0.00017207,87201.0,87190.0,0.0114765]
[1766118227643,0.00017207,87201.0,87192.0,0.0114763]
[1766118227847,0.00017207,87201.0,87194.0,0.0114761]
[1766118229139,0.00017207,87201.0,87190.0,0.00576]
[1766118229743,0.00017207,87201.0,87191.0,0.0114765]
[1766118230151,0.00017207,87201.0,87190.0,0.00576]
[1766118231550,0.00017207,87201.0,87189.0,0.0114767]
[1766118231849,0.00017207,87201.0,87190.0,0.00576]
[1766118234846,0.00017207,87201.0,87188.0,0.04811]
[1766118235040,0.19768157,87200.0,87188.0,0.04811]
[1766118235440,0.08233029,87212.0,87190.0,0.19768157]
[1766118235639,0.08233029,87212.0,87188.0,0.04811]
[1766118235640,0.08233029,87216.0,87191.0,0.00576]
[1766118235848,0.08233029,87216.0,87197.0,0.0114757]
[1766118236042,0.08233029,87217.0,87198.0,0.00576]
[1766118236348,0.00576,87219.0,87198.0,0.00576]
[1766118236535,0.00017207,87217.0,87198.0,0.00576]
[1766118236737,0.00017207,87217.0,87199.0,0.00017207]
[1766118237452,0.00017207,87217.0,87200.0,0.00576]
[1766118237647,0.00017207,87217.0,87199.0,0.00017207]
[1766118237648,0.0114732,87216.0,87199.0,0.00017207]
[1766118237850,0.0114735,87214.0,87199.0,0.00017207]
[1766118238334,0.01164517,87217.0,87199.0,0.00017207]
[1766118238939,0.19768157,87210.0,87199.0,0.00017207]
[1766118239146,0.00576,87209.0,87199.0,0.00017207]
[1766118241046,0.0114748,87204.0,87199.0,0.00017207]
[1766118241240,0.0114748,87204.0,87188.0,0.04811]
[1766118241740,0.00576,87209.0,87188.0,0.04811]
[1766118241741,0.0114744,87207.0,87188.0,0.04811]
[1766118242142,0.0114747,87205.0,87189.0,0.00017207]
[1766118242450,0.0172341,87209.0,87189.0,0.00017207]
[1766118242756,0.0114743,87208.0,87189.0,0.00017207]
[1766118243143,0.00576,87209.0,87189.0,0.00017207]
[1766118243339,0.0114747,87205.0,87189.0,7e-08]
[1766118243545,0.0114765,87191.0,87162.0,0.0114802]
[1766118243755,0.20344157,87190.0,87163.0,0.00576]
[1766118244148,0.00576,87190.0,87163.0,0.00576]
[1766118244546,0.00017207,87185.0,87163.0,0.00576]
[1766118244747,0.00017207,87185.0,87170.0,0.0114792]
[1766118245655,0.00017207,87185.0,87172.0,0.0114789]
[1766118246154,0.00017207,87185.0,87155.0,0.0114811]
[1766118246155,0.08233029,87203.0,87173.0,0.00576]
[1766118246454,0.00576,87205.0,87187.0,0.0114769]
[1766118246656,0.00576,87205.0,87187.0,0.00184]
[1766118247444,0.00593207,87205.0,87187.0,0.00201207]
[1766118248654,0.00593207,87205.0,87193.0,0.0114761]
[1766118248852,0.00593207,87205.0,87195.0,0.0114758]
[1766118248853,0.00017207,87205.0,87195.0,0.0114758]
[1766118249052,0.00017207,87205.0,87192.0,0.0114763]
[1766118249657,0.00017207,87205.0,87187.0,0.00017207]
[1766118249861,0.02273207,87205.0,87188.0,0.00576]
[1766118250158,0.02273207,87205.0,87187.0,0.00017207]
[1766118250361,0.02273207,87205.0,87188.0,0.00576]
[1766118252161,0.02273207,87205.0,87188.0,0.0172368]
[1766118252458,0.02849207,87205.0,87190.0,0.0114765]
[1766118252658,0.00593207,87205.0,87190.0,0.0114765]
[1766118253162,0.00593207,87205.0,87190.0,0.0172365]
[1766118253663,0.02849207,87205.0,87190.0,0.00576]
[1766118253964,0.02256,87204.0,87187.0,0.00017207]
[1766118255060,0.02256,87204.0,87187.0,2.07e-06]
[1766118255061,0.02256,87199.0,87187.0,2.07e-06]
[1766118255251,0.00576,87198.0,87187.0,2.07e-06]
[1766118255457,0.02256,87197.0,87187.0,2.07e-06]
[1766118255859,0.02256,87191.0,87163.0,0.0114801]
[1766118256061,0.02256,87179.0,87144.0,2.41084]
[1766118256261,0.02256,87159.0,87138.0,0.01377862]
[1766118256469,0.02256,87159.0,87138.0,0.00229522]
[1766118256864,0.02256,87156.0,87138.0,0.00229522]
[1766118257857,0.02256,87156.0,87138.0,0.01377862]
[1766118258060,0.02256,87156.0,87138.0,0.00229522]
[1766118258964,0.02256,87156.0,87138.0,0.04417522]
[1766118259163,0.02256,87156.0,87138.0,0.04741522]
[1766118259869,0.00017207,87157.0,87138.0,0.05889862]
[1766118260068,0.00017207,87157.0,87141.0,0.011483]
[1766118260370,0.00017207,87157.0,87138.0,0.04741522]
[1766118260569,0.00017207,87157.0,87146.0,0.0114824]
[1766118260755,0.00017207,87157.0,87148.0,0.0114821]
[1766118261370,0.00017207,87157.0,87147.0,0.00576]
[1766118261674,0.00017207,87157.0,87147.0,0.0172422]
[1766118262667,0.00576,87167.0,87147.0,0.0172422]
[1766118262668,0.00576,87167.0,87151.0,0.0114816]
[1766118263063,0.00576,87173.0,87147.0,0.00576]
[1766118263267,0.00576,87173.0,87155.0,0.0114811]
[1766118263460,0.00576,87173.0,87143.0,0.00017207]
[1766118263461,0.00576,87173.0,87157.0,0.0114809]
[1766118264164,0.02832,87173.0,87157.0,0.0114809]
[1766118265169,0.02832,87173.0,87156.0,0.0054]
[1766118265571,0.02832,87173.0,87157.0,0.0114809]
[1766118265762,0.00576,87173.0,87157.0,0.0114809]
[1766118266165,0.02256,87172.0,87156.0,0.0054]
[1766118266362,0.02256,87172.0,87156.0,0.0168811]
[1766118266663,0.02256,87172.0,87156.0,0.0054]
[1766118270263,0.02256,87172.0,87156.0,0.016881]
[1766118270556,0.00017207,87174.0,87159.0,0.0114806]
[1766118270758,0.02256,87173.0,87159.0,0.0114806]
[1766118271364,0.02256,87173.0,87156.0,0.0054]
[1766118271565,0.00017207,87174.0,87164.0,0.01148]
[1766118271961,0.00017207,87174.0,87147.0,2.41144]
[1766118271962,0.02256,87163.0,87138.0,0.04417522]
[1766118272165,0.02256,87152.0,87138.0,0.04417522]
[1766118272368,0.02256,87161.0,87138.0,0.04993522]
[1766118272568,0.00576,87160.0,87142.0,0.0114828]
[1766118272770,0.00576,87160.0,87138.0,0.04993522]
[1766118272975,0.02989207,87160.0,87138.0,0.04993522]
[1766118275575,0.02989207,87160.0,87139.0,0.0114833]
[1766118275966,0.02989207,87160.0,87138.0,0.04993522]
[1766118277769,0.02413207,87160.0,87138.0,0.04993522]
[1766118278276,0.02413207,87160.0,87142.0,0.0114828]
[1766118278472,0.00017207,87160.0,87149.0,0.011482]
[1766118278674,0.00017207,87160.0,87150.0,0.00576]
[1766118279368,0.00017207,87160.0,87147.0,0.00576]
[1766118279563,0.02972,87159.0,87138.0,0.04417522]
[1766118279863,0.02396,87157.0,87138.0,0.04417522]
[1766118280676,0.02396,87157.0,87139.0,0.00017207]
[1766118281076,0.02396,87152.0,87139.0,0.00017207]
[1766118285281,0.02396,87152.0,87139.0,2.07e-06]
[1766118286873,0.02396,87151.0,87139.0,2.07e-06]
[1766118287271,0.02396,87151.0,87138.0,0.04417522]
[1766118287272,0.02396,87151.0,87140.0,0.00576]
[1766118287472,0.02396,87151.0,87139.0,0.00576]
[1766118287979,0.02396,87151.0,87111.0,0.03077152]
[1766118287980,0.02396,87137.0,87111.0,0.03077152]
[1766118288276,0.02396,87137.0,87104.0,0.04090242]
[1766118288277,0.02396,87132.0,87117.0,0.0114861]
[1766118288490,0.00017207,87133.0,87123.0,0.0114853]
[1766118288673,0.00017207,87133.0,87123.0,0.0171653]
[1766118288872,0.00017207,87133.0,87123.0,0.00568]
[1766118289072,0.00010775,87132.0,87123.0,0.00568]
[1766118289378,0.00010775,87132.0,87123.0,0.0171653]
[1766118289880,2e-08,87133.0,87129.0,0.0114846]
[1766118290279,2e-08,87133.0,87131.0,0.0114843]
[1766118290679,0.00356,87139.0,87134.0,0.011484]
[1766118291177,0.00356,87139.0,87123.0,0.00568]
[1766118291377,0.0058,87142.0,87136.0,0.0114836]
[1766118291578,0.0058,87142.0,87133.0,0.0114841]
[1766118292777,0.0058,87142.0,87131.0,0.0058]
[1766118292778,0.0058,87142.0,87135.0,0.0114838]
[1766118292977,0.00017218,87148.0,87137.0,0.0114835]
[1766118293284,8e-08,87148.0,87137.0,0.00576]
[1766118293583,8e-08,87148.0,87138.0,0.0114834]
[1766118293986,8e-08,87148.0,87140.0,0.0114831]
[1766118294374,8e-08,87148.0,87137.0,0.0172435]
[1766118295081,8e-08,87148.0,87137.0,0.00576]
[1766118295786,8e-08,87148.0,87140.0,0.0114831]
[1766118296177,8e-08,87148.0,87137.0,0.0172435]
[1766118296788,8e-08,87148.0,87139.0,0.0114832]
[1766118297879,8e-08,87148.0,87137.0,0.00576]
[1766118298784,8e-08,87148.0,87138.0,0.0114834]
[1766118299285,8e-08,87148.0,87137.0,0.00576]
[1766118299483,0.02396008,87148.0,87137.0,0.00576]
[1766118301594,0.08262454,87167.0,87151.0,0.0114817]
[1766118301888,0.00576,87171.0,87160.0,0.0114805]
[1766118302199,0.00229417,87178.0,87160.0,0.0114805]
[1766118302200,0.00229417,87178.0,87160.0,0.00568]
[1766118302384,0.10294146,87192.0,87183.0,0.0114775]
[1766118302691,0.10294146,87192.0,87162.0,0.0114803]
[1766118302692,0.00576,87193.0,87180.0,0.0114779]
[1766118303087,0.00576,87193.0,87179.0,0.00017207]
[1766118304095,0.00017207,87196.0,87180.0,0.0114778]
[1766118304286,0.02334207,87196.0,87180.0,0.0114778]
[1766118304890,0.02334207,87196.0,87179.0,0.00017207]
[1766118305282,0.00017207,87196.0,87180.0,0.0114779]
[1766118306494,7e-08,87196.0,87179.0,0.00017207]
[1766118306689,7e-08,87196.0,87194.0,0.011476]
[1766118307490,0.10294146,87238.0,87191.0,0.00576]
[1766118307491,0.02317,87222.0,87205.0,0.0114746]
[1766118307795,0.00012,87220.0,87205.0,0.0114746]
[1766118307996,0.00012,87220.0,87202.0,0.00576]
[1766118308404,0.02317,87218.0,87202.0,0.00593196]
[1766118312297,0.00017196,87220.0,87202.0,0.00593196]
[1766118312594,0.08187552,87246.0,87202.0,0.00593196]
[1766118312595,0.02317,87237.0,87225.0,0.0114719]
[1766118312798,0.02317,87237.0,87222.0,0.0114723]
[1766118313197,0.02317,87237.0,87222.0,0.0560623]
[1766118313393,0.02317,87237.0,87222.0,0.04459]
[1766118314002,0.00017196,87238.0,87228.0,0.0114716]
[1766118314302,0.00017196,87238.0,87222.0,0.04459]
[1766118314498,0.00017196,87238.0,87222.0,0.0560623]
[1766118315004,0.02334196,87238.0,87223.0,0.00576]
[1766118315296,0.02334196,87238.0,87222.0,0.04459]
[1766118315297,0.02317,87235.0,87222.0,0.019132]
[1766118315500,0.00017196,87238.0,87199.0,2.411]
[1766118315501,0.02317,87222.0,87199.0,2.411]
[1766118315796,0.02317,87217.0,87191.0,0.0114764]
[1766118315987,0.02317,87217.0,87196.0,0.0114758]
[1766118316396,0.02317,87217.0,87198.0,0.00017196]
[1766118316397,0.00017196,87215.0,87198.0,0.00017196]
[1766118316701,0.02334196,87215.0,87199.0,0.0172354]
[1766118318101,0.02334196,87215.0,87203.0,0.0114748]
[1766118318287,0.0346416,87228.0,87205.0,0.0114745]
[1766118318493,0.00576,87223.0,87206.0,0.00544]
[1766118318803,0.02317,87228.0,87210.0,0.0114739]
[1766118318992,0.02317,87236.0,87206.0,0.00544]
[1766118319199,0.0114705,87237.0,87215.0,0.0114733]
[1766118319200,0.02893,87235.0,87215.0,0.0114733]
[1766118319495,0.00017196,87234.0,87216.0,0.00193196]
[1766118319696,0.02317,87233.0,87216.0,0.00193196]
[1766118319891,0.00017196,87234.0,87221.0,0.0114724]
[1766118320096,0.00017196,87234.0,87216.0,0.00193196]
[1766118320097,0.00017196,87234.0,87220.0,0.0114726]
[1766118320291,0.00017196,87234.0,87226.0,0.0114718]
[1766118320502,0.00017196,87234.0,87225.0,0.00576]
[1766118320807,0.02317,87232.0,87216.0,0.00593196]
[1766118322706,0.02317,87232.0,87216.0,0.01740516]
[1766118323305,0.00017196,87234.0,87216.0,0.01740516]
[1766118323504,0.00017196,87234.0,87219.0,0.0114728]
[1766118323701,0.00017196,87234.0,87216.0,0.00593196]
[1766118323702,6e-08,87234.0,87223.0,0.0114721]
[1766118323905,6e-08,87234.0,87224.0,0.00576]
[1766118324209,6e-08,87234.0,87225.0,0.011472]
[1766118324508,6e-08,87234.0,87227.0,0.0114716]
[1766118326006,6e-08,87234.0,87224.0,0.00576]
[1766118326207,6e-08,87234.0,87225.0,0.011472]
[1766118327300,6e-08,87234.0,87224.0,0.00576]
[1766118327803,6e-08,87234.0,87225.0,0.011472]
[1766118329208,6e-08,87234.0,87224.0,0.00576]
[1766118330001,6e-08,87234.0,87229.0,0.0114714]
[1766118330201,6e-08,87234.0,87226.0,0.0114718]
[1766118331711,6e-08,87234.0,87224.0,0.00576]
[1766118332608,6e-08,87234.0,87232.0,0.011471]
[1766118333607,6e-08,87234.0,87232.0,0.017231]
[1766118333813,0.0232,87252.0,87232.0,0.017231]
[1766118333814,0.0232,87252.0,87236.0,0.0114705]
[1766118334319,0.0232,87252.0,87232.0,0.00576]
[1766118334516,0.0232,87240.0,87233.0,0.00552]
[1766118334718,0.0232,87240.0,87231.0,0.00576]
[1766118336518,0.0232,87240.0,87227.0,0.00017196]
[1766118336723,0.0232,87239.0,87227.0,0.00017196]
[1766118336922,0.0232,87239.0,87228.0,0.00576]
[1766118340623,0.0232,87239.0,87229.0,0.0114715]
[1766118340827,0.0232,87239.0,87231.0,0.0114711]
[1766118341023,0.00017196,87244.0,87233.0,0.0114708]
[1766118341525,6e-08,87244.0,87239.0,0.01147]
[1766118341726,6e-08,87244.0,87228.0,0.00576]
[1766118341932,6e-08,87244.0,87238.0,0.0114702]
[1766118342127,6e-08,87244.0,87230.0,0.0046]
[1766118342529,6e-08,87244.0,87239.0,0.0114701]
[1766118343032,6e-08,87244.0,87236.0,0.0114705]
[1766118343232,6e-08,87244.0,87235.0,0.0114706]
[1766118343435,0.06126281,87257.0,87230.0,0.0160713]
[1766118343626,0.00229207,87258.0,87230.0,0.20200806]
[1766118343826,0.00229207,87258.0,87247.0,0.0114691]
[1766118344132,0.00229207,87258.0,87249.0,0.0114688]
[1766118344333,0.00229207,87258.0,87251.0,0.0114685]
[1766118344629,0.00229207,87258.0,87246.0,0.00017196]
[1766118344819,0.00229207,87258.0,87246.0,0.01164106]
[1766118345134,0.00229207,87258.0,87246.0,0.00017196]
[1766118346032,0.00229207,87258.0,87249.0,0.0114688]
[1766118347629,0.00229207,87258.0,87246.0,0.00017196]
[1766118348031,0.00229207,87258.0,87251.0,0.0114685]
[1766118348333,7e-08,87258.0,87249.0,0.00576]
[1766118348533,0.06126281,87274.0,87249.0,0.00576]
[1766118348534,0.00576,87270.0,87259.0,0.0114675]